bitfinex-derivatives/quotes_ETHF0:USTF0_20240904
["timestamp","ask_amount","ask_price","bid_price","bid_amount"]
[1725443415542,0.41707,2398.0,2397.9,0.76994493]
[1725443416345,0.41707,2398.0,2397.9,0.39224493]
[1725443417040,3.21404493,2398.4,2397.9,0.39224493]
[1725443417230,3.21404493,2398.4,2398.0,0.3834]
[1725443417231,0.41704,2398.2,2398.0,0.3834]
[1725443417438,0.42325493,2398.4,2398.1,0.41705]
[1725443417636,0.41702,2398.3,2398.0,0.80047]
[1725443417842,0.00624493,2398.4,2398.0,3.2634]
[1725443418038,0.00624493,2398.4,2398.2,0.41702]
[1725443418244,0.42325493,2398.4,2398.1,3.62485]
[1725443418542,0.42324493,2398.4,2398.1,3.62485]
[1725443419342,0.00624493,2398.4,2398.1,3.2078]
[1725443419536,0.00624493,2398.4,2398.3,0.41702]
[1725443419733,0.00624493,2398.4,2398.2,7.46662]
[1725443420036,0.42324493,2398.4,2398.3,4.5352]
[1725443420345,0.00624493,2398.4,2398.3,4.95222]
[1725443420539,0.00624493,2398.4,2398.3,10.95222]
[1725443421043,0.00624493,2398.4,2398.3,4.95222]
[1725443421234,0.00624493,2398.4,2398.3,10.95222]
[1725443421436,0.00624493,2398.4,2398.3,4.95222]
[1725443422134,0.00624493,2398.4,2398.3,8.16002]
[1725443422535,0.00624493,2398.4,2398.3,14.16002]
[1725443422731,0.00624493,2398.4,2398.3,8.16002]
[1725443422931,0.00624493,2398.4,2398.3,14.16002]
[1725443424951,0.51394,2398.8,2398.7,0.41695]
[1725443425142,0.41694,2398.8,2398.7,0.41695]
[1725443425345,0.41694,2398.8,2398.6,3.98525]
[1725443425648,0.41694,2398.8,2398.7,0.3827]
[1725443425844,1.45928,2398.8,2398.7,0.3827]
[1725443426046,1.04247,2398.5,2398.3,3.2078]
[1725443426245,6.0878,2398.9,2398.0,0.3623]
[1725443426246,0.41705,2398.1,2398.0,0.3623]
[1725443426542,3.2689,2398.7,2397.9,0.00624493]
[1725443426543,1.45976,2398.0,2397.9,0.00624493]
[1725443427246,5.63016,2398.0,2397.9,0.00624493]
[1725443427454,0.41717,2397.5,2397.2,3.2423]
[1725443427648,0.41718,2397.4,2397.2,3.2423]
[1725443428146,0.41717,2397.5,2397.3,0.3722]
[1725443429050,0.42339493,2397.6,2397.3,0.78939]
[1725443429254,0.41716,2397.5,2397.3,0.78939]
[1725443429445,0.42339493,2397.6,2397.3,0.78939]
[1725443429852,0.41716,2397.5,2397.3,0.3722]
[1725443432158,0.41716,2397.5,2397.3,3.99718]
[1725443432449,0.42339493,2397.6,2397.3,3.99718]
[1725443432752,0.41716,2397.5,2397.3,3.99718]
[1725443433253,0.42339493,2397.6,2397.3,3.99718]
[1725443433549,0.41716,2397.5,2397.3,3.99719]
[1725443433749,0.42339493,2397.6,2397.4,0.41717]
[1725443434155,0.42339493,2397.6,2397.5,0.41716]
[1725443434156,0.00624493,2397.6,2397.5,0.41716]
[1725443434554,0.00624493,2397.6,2397.5,4.58836]
[1725443434854,0.42339493,2397.6,2397.4,3.29717]
[1725443435449,0.42339493,2397.6,2397.5,0.41716]
[1725443435648,0.00624493,2397.6,2397.5,0.41716]
[1725443436258,0.41718,2397.4,2397.3,3.99719]
[1725443436451,0.00624493,2397.6,2397.3,3.99719]
[1725443436761,0.00624493,2397.6,2397.3,3.99718]
[1725443436762,0.41717,2397.5,2397.3,3.99718]
[1725443437461,0.41718,2397.4,2397.3,3.58]
[1725443439160,0.41718,2397.4,2397.3,3.2078]
[1725443439362,1.46013,2397.4,2397.3,3.2078]
[1725443439754,0.41718,2397.4,2397.3,3.2078]
[1725443442363,0.41718,2397.4,2397.2,0.00624493]
[1725443442364,1.46018,2397.3,2397.2,0.00624493]
[1725443442561,2.20878,2397.3,2397.2,0.00624493]
[1725443442767,0.41718,2397.4,2397.2,0.00624493]
[1725443443359,0.41719,2397.3,2397.2,0.00624493]
[1725443445367,1.46018,2397.3,2397.2,0.00624493]
[1725443446659,5.63138,2397.3,2397.2,0.00624493]
[1725443447159,6.67437,2397.3,2397.2,0.00624493]
[1725443447359,5.63138,2397.3,2397.2,0.00624493]
[1725443447556,0.41719,2397.3,2397.2,0.00624493]
[1725443447878,4.58839,2397.3,2397.2,0.00624493]
[1725443448768,0.41719,2397.3,2397.2,0.00624493]
[1725443449859,0.3576,2397.4,2397.2,0.00624493]
[1725443450066,0.77478,2397.4,2397.2,0.42345493]
[1725443450365,0.3576,2397.4,2397.2,0.42344493]
[1725443450569,0.77479,2397.4,2397.2,0.42344493]
[1725443450760,3.5711,2397.5,2397.3,0.41719]
[1725443451063,0.41718,2397.4,2397.3,0.3768]
[1725443451458,0.41718,2397.4,2397.3,0.79399]
[1725443451662,0.41718,2397.4,2397.3,0.3768]
[1725443452054,3.62497,2397.5,2397.3,0.3768]
[1725443452261,0.41718,2397.4,2397.3,0.7488]
[1725443452960,0.41718,2397.4,2397.3,1.16599]
[1725443455271,0.41718,2397.4,2397.3,0.7488]
[1725443455473,0.41719,2397.3,2397.2,0.00624493]
[1725443455661,0.41719,2397.3,2397.2,0.39064493]
[1725443457079,0.41719,2397.3,2397.2,0.80785493]
[1725443457575,0.41719,2397.3,2397.2,0.00624493]
[1725443457576,1.46018,2397.3,2397.2,0.00624493]
[1725443458178,1.82498,2397.3,2397.2,0.00624493]
[1725443459568,0.78199,2397.3,2397.2,0.00624493]
[1725443459767,0.41719,2397.3,2397.2,0.00624493]
[1725443460771,1.46018,2397.3,2397.2,0.00624493]
[1725443461770,5.38317,2397.3,2397.2,0.00624493]
[1725443462075,0.41726,2396.9,2396.8,0.3691]
[1725443462678,0.41725,2397.0,2396.8,0.78638]
[1725443462864,0.41726,2396.9,2396.8,0.78638]
[1725443463069,0.41726,2397.0,2396.8,0.78638]
[1725443463364,0.41726,2396.9,2396.8,0.78638]
[1725443464365,0.41724,2397.1,2397.0,0.41725]
[1725443465475,0.41724,2397.1,2396.8,0.3691]
[1725443465476,4.117,2397.3,2396.9,2.88]
[1725443465779,4.117,2397.3,2397.1,0.41723]
[1725443465968,4.117,2397.3,2397.2,0.3592]
[1725443466169,0.41719,2397.3,2397.2,0.3592]
[1725443466484,0.41719,2397.3,2396.4,0.41735]
[1725443466485,1.46049,2396.8,2396.4,0.41735]
[1725443466685,1.46049,2396.8,2396.4,0.3592]
[1725443466980,4.66829,2396.8,2396.4,0.3592]
[1725443469077,10.66829,2396.8,2396.3,3.2078]
[1725443469272,10.66829,2396.8,2395.9,0.097]
[1725443469273,1.0433,2396.6,2395.9,0.097]
[1725443469580,0.41742,2396.0,2395.7,0.3787]
[1725443469774,0.41741,2396.1,2395.7,0.3787]
[1725443469975,6.4611,2396.3,2395.7,0.3787]
[1725443470168,0.41741,2396.1,2395.7,0.3787]
[1725443470375,0.42364821,2396.2,2395.7,0.3787]
[1725443470673,0.42364821,2396.2,2395.8,3.2078]
[1725443470674,0.00625821,2396.2,2395.8,3.2078]
[1725443471174,0.00625821,2396.2,2395.5,3.2078]
[1725443471175,6.0878,2395.9,2395.5,3.2078]
[1725443471477,0.41749,2395.6,2395.2,0.3893]
[1725443472173,1.1277,2395.8,2395.2,0.3893]
[1725443472383,1.1277,2395.8,2395.2,3.68685]
[1725443472384,0.7544,2395.8,2395.2,3.68685]
[1725443472674,1.17186,2395.8,2395.3,3.2078]
[1725443473275,3.55679116,2396.1,2395.6,3.2078]
[1725443473276,0.4694,2396.1,2395.6,3.2078]
[1725443473494,0.3724,2396.1,2395.7,0.3552]
[1725443473673,3.21405821,2396.2,2395.7,0.3552]
[1725443474179,3.2078,2395.8,2395.2,2.88]
[1725443474369,0.12458334,2396.1,2395.8,0.41745]
[1725443474574,0.00625821,2396.2,2395.8,6.0878]
[1725443474775,0.00625821,2396.2,2395.9,0.41744]
[1725443475178,0.00625821,2396.2,2395.8,6.50525]
[1725443475375,0.00625821,2396.2,2395.8,6.0878]
[1725443475589,0.097,2396.6,2396.1,6.0878]
[1725443475880,3.2078,2397.5,2396.1,6.0878]
[1725443475881,3.2078,2397.2,2396.6,0.4173]
[1725443476071,3.2078,2397.2,2396.9,2.88]
[1725443476276,6.4611,2397.6,2396.7,6.4584]
[1725443476478,0.41717,2397.5,2396.7,6.87569]
[1725443476677,3.5811,2397.6,2396.9,2.88]
[1725443476882,2.88,2398.0,2397.0,3.2078]
[1725443477085,0.00625821,2397.5,2397.0,3.21405821]
[1725443477384,0.00625821,2397.5,2397.0,3.57435821]
[1725443477592,0.00625821,2397.5,2397.3,6.0878]
[1725443477780,0.00625821,2397.5,2397.4,0.78778]
[1725443477978,0.00625821,2397.5,2397.4,10.95898]
[1725443478486,0.00625821,2397.5,2397.4,10.5418]
[1725443479081,0.00625821,2397.5,2397.4,10.95898]
[1725443479285,0.00625821,2397.5,2397.4,10.5418]
[1725443480187,0.41707,2398.0,2397.4,10.5418]
[1725443480484,0.41707,2398.0,2397.4,4.5418]
[1725443480680,3.2078,2398.2,2397.4,4.5418]
[1725443480874,0.41707,2398.0,2397.4,4.5418]
[1725443481075,0.00625821,2397.9,2397.4,4.5418]
[1725443481686,0.42334821,2397.9,2397.4,4.5418]
[1725443482286,0.42334821,2397.9,2397.4,0.3706]
[1725443482790,0.41712,2397.8,2397.4,0.3706]
[1725443482984,0.00625821,2397.9,2397.4,0.3706]
[1725443482985,0.41716,2397.6,2397.4,0.3706]
[1725443483187,3.21405821,2397.9,2397.4,0.3706]
[1725443483383,0.41715,2397.6,2397.4,0.3706]
[1725443486187,3.21405821,2397.9,2397.4,0.3706]
[1725443486388,0.41712,2397.8,2397.4,0.78777]
[1725443487390,3.21405821,2397.9,2397.4,0.3706]
[1725443487391,3.63115821,2397.9,2397.4,0.3706]
[1725443487689,0.41711,2397.8,2397.5,0.41715]
[1725443489093,0.41713,2397.7,2397.5,0.41715]
[1725443490696,0.41712,2397.8,2397.6,0.41714]
[1725443491693,0.00625821,2397.9,2397.6,3.2078]
[1725443491889,0.41703,2398.3,2398.1,0.41705]
[1725443492097,0.41703,2398.3,2398.2,0.3658]
[1725443493193,0.41707,2398.0,2397.7,1.13431]
[1725443493401,0.41707,2398.0,2397.8,0.78291]
[1725443494503,0.41707,2398.1,2397.9,0.41709]
[1725443495197,0.41707,2398.0,2397.9,0.41709]
[1725443495702,0.41709,2397.9,2397.8,0.78289]
[1725443495897,0.41708,2398.0,2397.8,0.78291]
[1725443496096,0.41707,2398.1,2397.9,0.41709]
[1725443496496,3.21405821,2398.5,2397.8,0.3658]
[1725443496497,0.41708,2398.0,2397.8,0.7829]
[1725443497708,0.41707,2398.1,2397.9,0.41709]
[1725443498105,0.41707,2398.1,2398.0,0.41707]
[1725443498311,0.41707,2398.1,2397.9,0.41708]
[1725443499109,0.41707,2398.0,2397.9,0.41708]
[1725443499417,0.41707,2398.0,2397.8,0.7829]
[1725443499814,0.41707,2398.1,2397.8,0.3658]
[1725443500214,0.41704,2398.2,2398.1,0.41705]
[1725443500714,0.41703,2398.3,2398.1,0.41705]
[1725443500902,0.41704,2398.2,2398.1,0.41705]
[1725443501106,0.41705,2398.1,2397.9,3.2078]
[1725443501316,0.41705,2398.1,2398.0,0.41707]
[1725443501611,0.41705,2398.1,2398.0,4.1704]
[1725443501818,0.41705,2398.1,2397.9,3.62488]
[1725443502114,0.41705,2398.1,2397.9,7.79528]
[1725443502511,0.41705,2398.1,2398.0,0.41707]
[1725443502907,0.41705,2398.1,2398.0,4.58747]
[1725443503111,0.41705,2398.1,2398.0,0.41707]
[1725443503420,0.41705,2398.2,2398.1,0.41705]
[1725443504109,0.41705,2398.2,2397.9,3.2078]
[1725443504110,0.41703,2398.3,2398.2,0.41704]
[1725443504312,0.00625821,2398.5,2398.3,0.41702]
[1725443504616,0.42324821,2398.5,2398.4,0.3802]
[1725443504821,0.42324821,2398.5,2398.4,0.7972]
[1725443505212,0.42324821,2398.5,2398.4,0.3802]
[1725443508815,0.00625821,2398.5,2398.4,0.7972]
[1725443509321,0.00625821,2398.5,2398.4,4.9668]
[1725443510524,0.42323821,2398.5,2398.4,4.5498]
[1725443510727,0.42323821,2398.5,2398.4,0.7972]
[1725443510916,0.42323821,2398.5,2398.4,0.3802]
[1725443512417,0.42323821,2398.5,2398.4,0.7972]
[1725443513021,0.42323821,2398.5,2398.4,0.3802]
[1725443516925,0.41702,2398.3,2398.2,0.00625821]
[1725443518318,5.62918,2398.3,2398.2,0.00625821]
[1725443518522,5.62918,2398.3,2397.8,0.097]
[1725443518523,0.41709,2397.9,2397.8,0.097]
[1725443518731,1.04265,2398.1,2397.7,0.3562]
[1725443518732,0.41711,2397.8,2397.7,0.3562]
[1725443519027,3.92265,2398.1,2397.7,0.77332]
[1725443519028,0.4171,2397.9,2397.7,0.77332]
[1725443519421,0.4171,2397.9,2397.8,0.41711]
[1725443519630,0.41708,2398.0,2397.8,0.41711]
[1725443519842,3.2078,2398.3,2398.0,0.41706]
[1725443520128,0.41704,2398.2,2398.1,0.41705]
[1725443520334,0.41703,2398.3,2397.9,3.2078]
[1725443520527,0.77931,2398.4,2398.2,0.41703]
[1725443520733,0.77931,2398.4,2398.3,0.41702]
[1725443520924,0.41702,2398.3,2398.0,0.7474]
[1725443521125,0.77932,2398.4,2398.3,0.41702]
[1725443521325,0.77932,2398.4,2398.0,0.7474]
[1725443521532,0.77932,2398.4,2398.3,0.41702]
[1725443522019,0.41702,2398.4,2398.2,0.41703]
[1725443522222,0.41702,2398.4,2398.3,0.77492]
[1725443522422,0.42324821,2398.5,2398.4,0.417]
[1725443522628,0.00625821,2398.5,2398.4,0.417]
[1725443522832,0.42323821,2398.5,2398.4,0.417]
[1725443523228,0.00625821,2398.5,2398.4,0.417]
[1725443525539,0.42323821,2398.5,2398.4,0.417]
[1725443525737,0.00625821,2398.5,2398.4,0.417]
[1725443526037,0.42323821,2398.5,2398.3,0.77491]
[1725443526240,0.00625821,2398.5,2398.4,0.417]
[1725443526628,0.00625821,2398.5,2398.4,4.5866]
[1725443527133,0.42323821,2398.5,2398.3,0.77491]
[1725443527335,0.00625821,2398.5,2398.4,0.417]
[1725443528131,0.42323821,2398.5,2398.4,0.417]
[1725443528351,0.00625821,2398.5,2398.4,0.417]
[1725443528735,0.42323821,2398.5,2398.4,0.417]
[1725443530329,0.417,2398.4,2398.3,0.7749]
[1725443532432,0.417,2398.4,2398.2,3.2078]
[1725443532734,0.417,2398.4,2397.7,0.51411]
[1725443532735,1.04262,2398.2,2397.7,0.51411]
[1725443532930,0.41709,2397.9,2397.8,0.3721]
[1725443533533,0.41708,2398.0,2397.8,0.3721]
[1725443533732,0.77237,2398.1,2397.8,0.3721]
[1725443534835,0.41708,2398.0,2397.8,0.3721]
[1725443535540,0.77237,2398.1,2397.8,0.3721]
[1725443535740,0.41707,2398.0,2397.8,0.3721]
[1725443536440,0.41705,2398.2,2397.9,0.41709]
[1725443536638,1.40585,2398.4,2397.8,0.3721]
[1725443536831,0.41707,2398.0,2397.8,0.3721]
[1725443538537,0.41706,2398.1,2397.8,0.3721]
[1725443539240,0.41705,2398.2,2397.9,0.41709]
[1725443539535,0.3633,2398.4,2397.9,0.41708]
[1725443539734,0.41708,2398.0,2397.8,0.3721]
[1725443539943,3.2433,2398.4,2397.8,0.3721]
[1725443539944,0.41709,2397.9,2397.8,0.3721]
[1725443540144,0.41712,2397.7,2397.6,3.21405821]
[1725443540444,0.41712,2397.7,2397.6,0.00625821]
[1725443541236,0.54201603,2397.7,2397.6,0.00625821]
[1725443541437,0.54201603,2397.7,2397.3,3.2078]
[1725443541438,0.41718,2397.4,2397.3,3.2078]
[1725443541734,0.41723,2397.1,2397.0,0.3759]
[1725443541931,0.41726,2396.9,2396.5,4.29677121]
[1725443542135,0.4173,2396.7,2396.6,0.3759]
[1725443542839,3.27165821,2396.9,2396.6,0.3759]
[1725443542840,0.41729,2396.8,2396.6,0.3759]
[1725443543045,3.27165821,2396.9,2396.6,0.3759]
[1725443543046,0.4173,2396.7,2396.6,0.3759]
[1725443543551,0.41729,2396.8,2396.6,0.3759]
[1725443543938,0.4173,2396.7,2396.6,0.3759]
[1725443544542,0.41733,2396.6,2396.4,0.00625821]
[1725443544839,3.27165821,2396.9,2396.4,0.00625821]
[1725443545039,0.41733,2396.5,2396.4,0.00625821]
[1725443545449,3.29733,2396.5,2396.4,0.00625821]
[1725443546439,0.41733,2396.5,2396.4,0.00625821]
[1725443546956,0.4173,2396.7,2396.4,0.00625821]
[1725443547247,2.88,2396.8,2396.4,0.00625821]
[1725443547748,0.41733,2396.5,2396.4,0.00625821]
[1725443547942,0.41733,2396.6,2396.4,0.00625821]
[1725443548142,0.41733,2396.5,2396.4,0.00625821]
[1725443549343,0.41732,2396.6,2396.4,0.00625821]
[1725443549541,2.88,2396.8,2396.4,0.00625821]
[1725443549741,0.41731,2396.7,2396.4,0.42360821]
[1725443550247,0.41732,2396.6,2396.4,0.42360821]
[1725443550851,0.41731,2396.7,2396.5,0.41733]
[1725443551041,0.00625821,2396.9,2396.5,3.2078]
[1725443551241,0.00625821,2396.9,2396.6,0.3883]
[1725443551435,0.00625821,2396.9,2396.8,3.62508]
[1725443551836,0.00625821,2396.9,2396.8,7.79708]
[1725443555155,0.00625821,2396.9,2396.8,3.62508]
[1725443556150,0.00625821,2396.9,2396.6,0.3883]
[1725443556341,0.42352821,2396.9,2396.8,0.41728]
[1725443556544,0.00625821,2396.9,2396.8,0.41728]
[1725443556952,0.00625821,2396.9,2396.8,3.62508]
[1725443557144,0.00625821,2396.9,2396.8,3.2078]
[1725443557344,0.00625821,2396.9,2396.8,3.62508]
[1725443557951,0.42351821,2396.9,2396.8,3.2078]
[1725443559449,0.4173,2396.7,2396.6,0.3883]
[1725443560747,0.41732,2396.6,2396.4,0.42359821]
[1725443560959,0.41732,2396.6,2396.4,0.80049821]
[1725443561453,1.04321,2396.8,2396.4,0.80049821]
[1725443561655,0.41732,2396.6,2396.4,0.80049821]
[1725443562567,0.41733,2396.5,2396.4,0.38315821]
[1725443563650,0.41733,2396.6,2396.4,0.38315821]
[1725443563848,0.41732,2396.6,2396.4,0.38315821]
[1725443564050,0.41732,2396.6,2396.4,0.80049821]
[1725443565049,0.4173,2396.7,2396.5,0.41733]
[1725443566058,0.41732,2396.6,2396.5,0.41733]
[1725443566262,0.41731,2396.7,2396.5,0.41733]
[1725443566468,0.41731,2396.7,2396.6,0.41732]
[1725443567162,0.41729,2396.8,2396.6,0.4173]
[1725443567365,0.41728,2396.8,2396.6,0.4173]
[1725443568959,0.00625821,2396.9,2396.4,0.38315821]
[1725443569165,0.42353821,2396.9,2396.7,0.41729]
[1725443569356,0.41728,2396.8,2396.6,0.4173]
[1725443569558,0.41728,2396.8,2396.7,0.4173]
[1725443569866,0.42353821,2396.9,2396.7,0.4173]
[1725443570160,0.00625821,2396.9,2396.6,0.41731]
[1725443570461,0.4173,2396.8,2396.6,0.41731]
[1725443570767,0.4173,2396.8,2396.7,0.4173]
[1725443570958,0.4173,2396.8,2396.6,0.4173]
[1725443571159,0.4173,2396.8,2396.7,0.4173]
[1725443572157,0.00625821,2396.9,2396.4,0.38315821]
[1725443572461,0.41733,2396.5,2396.4,0.38315821]
[1725443572670,0.41733,2396.5,2396.4,0.00625821]
[1725443572861,5.63347,2396.5,2396.4,0.00625821]
[1725443573066,6.01757,2396.5,2396.4,0.00625821]
[1725443573262,12.01757,2396.5,2396.4,0.00625821]
[1725443575167,13.06091,2396.5,2396.4,0.00625821]
[1725443577466,12.01757,2396.5,2396.4,0.00625821]
[1725443581772,6.01757,2396.5,2396.4,0.00625821]
[1725443582073,0.80143,2396.5,2396.4,0.00625821]
[1725443582474,4.97423,2396.5,2396.4,0.00625821]
[1725443582769,6.01757,2396.5,2396.4,0.00625821]
[1725443582982,12.01757,2396.5,2396.4,0.00625821]
[1725443583177,12.01757,2396.5,2396.0,0.3861]
[1725443583178,0.4174,2396.1,2396.0,0.3861]
[1725443583366,0.4174,2396.1,2395.9,3.2078]
[1725443583367,1.46098,2396.0,2395.9,3.2078]
[1725443583564,1.85178,2396.0,2395.9,3.2078]
[1725443584476,0.41747,2395.7,2395.6,0.3723]
[1725443584669,2.88,2396.1,2395.7,0.41747]
[1725443584870,0.41743,2396.0,2395.8,0.3821]
[1725443585180,0.41744,2395.9,2395.8,0.3821]
[1725443586864,0.41747,2395.7,2395.6,0.3723]
[1725443588477,0.41747,2395.7,2395.2,1.08897121]
[1725443588478,14.42589,2395.7,2395.2,1.08897121]
[1725443588780,0.41754,2395.3,2395.2,0.3654]
[1725443588977,2.88,2395.5,2395.2,0.3654]
[1725443588978,0.41753,2395.4,2395.2,0.3654]
[1725443589185,2.88,2395.6,2395.2,0.3654]
[1725443589477,0.41751,2395.5,2395.2,0.3654]
[1725443590474,3.2975,2395.6,2395.3,0.41754]
[1725443590673,0.4175,2395.6,2395.2,0.3654]
[1725443590877,3.63153821,2395.7,2395.3,3.62534]
[1725443591087,0.4175,2395.6,2395.3,3.2078]
[1725443591482,3.63153821,2395.7,2395.3,3.62533]
[1725443591679,0.41751,2395.5,2395.2,0.78295]
[1725443592377,0.41751,2395.5,2395.3,0.41754]
[1725443592775,0.41751,2395.5,2395.2,0.78295]
[1725443593289,4.25776821,2395.7,2395.2,0.3654]
[1725443593683,0.41752,2395.5,2395.2,0.78295]
[1725443593881,0.41752,2395.5,2395.3,0.41754]
[1725443594480,4.25776821,2395.7,2395.3,0.41753]
[1725443594481,0.4175,2395.6,2395.3,0.41753]
[1725443594774,3.63153821,2395.7,2395.5,0.4175]
[1725443594980,0.42373821,2395.7,2395.6,0.7415]
[1725443595785,0.00625821,2395.7,2395.6,1.15899]
[1725443596378,0.42372821,2395.7,2395.6,0.7415]
[1725443597686,0.00625821,2395.7,2395.6,0.7415]
[1725443598087,0.42372821,2395.7,2395.6,0.7415]
[1725443598584,0.00625821,2395.7,2395.6,0.7415]
[1725443599087,0.42372821,2395.7,2395.6,0.7415]
[1725443600491,0.00625821,2395.7,2395.6,0.7415]
[1725443600696,0.00625821,2395.7,2395.6,1.15899]
[1725443600896,0.42372821,2395.7,2395.6,0.7415]
[1725443602385,0.42372821,2395.7,2395.3,3.2078]
[1725443602386,1.04994821,2395.7,2395.3,3.2078]
[1725443602691,0.41752,2395.5,2395.3,4.36414]
[1725443602890,0.4175,2395.6,2395.3,3.9466]
[1725443603193,0.4175,2395.6,2395.4,0.41752]
[1725443603495,4.326,2396.8,2395.6,1.04373]
[1725443603794,4.847,2396.8,2396.2,0.41737]
[1725443604090,4.847,2396.8,2396.3,0.7577]
[1725443604091,0.41732,2396.6,2396.3,0.7577]
[1725443604297,4.847,2396.8,2396.3,0.7577]
[1725443604587,0.00625821,2396.7,2396.3,3.9655]
[1725443604779,0.42355821,2396.7,2396.3,4.38286]
[1725443605094,0.00625821,2396.7,2396.3,4.38286]
[1725443605284,0.00625821,2396.7,2396.3,3.2078]
[1725443605590,0.41733,2396.6,2396.2,0.42363821]
[1725443605794,0.41733,2396.6,2396.2,3.63143821]
[1725443605992,0.00625821,2396.7,2396.2,3.63143821]
[1725443606385,0.42356821,2396.7,2396.3,0.368]
[1725443606588,0.00625821,2396.7,2396.4,0.41735]
[1725443607285,0.00625821,2396.7,2396.5,0.3635]
[1725443610602,0.00625821,2396.7,2396.2,0.00625821]
[1725443610603,0.41737,2396.3,2396.2,0.00625821]
[1725443610899,4.3408,2396.3,2396.2,0.00625821]
[1725443611101,4.3408,2396.3,2395.5,0.62651]
[1725443611102,0.41745,2395.9,2395.5,0.62651]
[1725443611291,2.88,2396.0,2395.4,0.41752]
[1725443611292,0.41746,2395.8,2395.4,0.41752]
[1725443611594,3.62521,2396.1,2395.7,0.41747]
[1725443612195,0.41742,2396.0,2395.6,0.41748]
[1725443612396,0.41742,2396.0,2395.6,0.80618]
[1725443613086,0.41746,2395.8,2395.6,0.3887]
[1725443613287,0.41745,2395.9,2395.6,3.5965]
[1725443614093,3.2078,2396.1,2395.7,0.41746]
[1725443614289,0.41742,2396.0,2395.7,0.41746]
[1725443614803,7.6846,2396.2,2395.6,3.9854]
[1725443614804,10.5646,2396.2,2395.6,3.9854]
[1725443614991,0.41744,2395.9,2395.6,4.40288]
[1725443615295,0.41741,2396.1,2395.8,0.41745]
[1725443615691,0.41743,2396.0,2395.7,0.41747]
[1725443615892,0.41743,2396.0,2395.8,0.41745]
[1725443616399,0.41743,2396.0,2395.7,0.41746]
[1725443616600,0.41743,2396.0,2395.6,3.9854]
[1725443616990,0.41743,2396.0,2395.7,0.41747]
[1725443617200,0.41741,2396.1,2395.8,0.41744]
[1725443617402,0.41742,2396.0,2395.8,0.41744]
[1725443617603,0.41741,2396.1,2395.8,0.41744]
[1725443617902,4.117,2396.2,2396.1,0.4174]
[1725443618111,2.88,2396.4,2395.7,1.09131702]
[1725443618290,0.41743,2396.0,2395.8,0.41745]
[1725443618599,2.88,2396.4,2395.9,0.41744]
[1725443618600,0.41741,2396.1,2395.9,0.41744]
[1725443619005,0.41738,2396.3,2396.0,0.41741]
[1725443619193,0.41739,2396.2,2396.0,0.41741]
[1725443619894,1.04338,2396.4,2395.9,0.41743]
[1725443620102,0.41741,2396.1,2395.9,0.41743]
[1725443620496,0.4174,2396.2,2396.0,0.41741]
[1725443620802,0.41741,2396.1,2395.9,0.41743]
[1725443621598,0.41739,2396.2,2396.0,0.41741]
[1725443621802,0.41741,2396.1,2395.9,0.41743]
[1725443622703,0.41741,2396.1,2395.9,4.59103]
[1725443622906,0.41741,2396.1,2395.9,0.41743]
[1725443623700,0.41741,2396.1,2396.0,0.41742]
[1725443623909,0.41741,2396.1,2395.9,0.41743]
[1725443624408,0.41741,2396.1,2395.9,4.59103]
[1725443624706,1.04338,2396.4,2396.1,0.4174]
[1725443624906,1.04338,2396.4,2396.0,0.41741]
[1725443624907,0.41739,2396.2,2396.0,0.41741]
[1725443625205,0.41741,2396.1,2396.0,0.41742]
[1725443625806,1.04338,2396.4,2396.0,0.41742]
[1725443626204,0.4174,2396.1,2396.0,0.41742]
[1725443626406,0.41739,2396.2,2395.7,5.06561702]
[1725443626710,0.41739,2396.2,2396.0,0.41741]
[1725443627507,0.41739,2396.2,2396.1,0.4174]
[1725443627901,0.41739,2396.2,2396.0,0.41741]
[1725443629914,0.4174,2396.1,2395.7,3.9743]
[1725443630103,0.4174,2396.1,2396.0,0.41742]
[1725443630303,0.41742,2396.0,2395.7,3.9743]
[1725443630513,0.41742,2396.0,2395.8,0.41744]
[1725443631106,0.41742,2396.0,2395.8,4.59104]
[1725443631415,0.41745,2395.8,2395.7,1.15657]
[1725443631608,0.41744,2395.9,2395.7,1.15656]
[1725443631909,1.42991,2396.1,2395.7,1.15656]
[1725443631910,0.41745,2395.8,2395.7,1.15656]
[1725443632400,0.41745,2395.9,2395.7,1.15656]
[1725443634108,0.41745,2395.8,2395.7,0.7391]
[1725443634309,0.41745,2395.9,2395.7,1.15656]
[1725443634711,1.04356,2396.0,2395.7,1.15656]
[1725443634712,0.41745,2395.8,2395.7,1.15656]
[1725443635114,0.41745,2395.8,2395.7,0.7391]
[1725443635310,0.3864,2396.1,2395.6,3.62528]
[1725443635311,0.41747,2395.7,2395.6,3.2078]
[1725443635512,0.3864,2396.1,2395.7,0.41747]
[1725443635513,0.41746,2395.8,2395.7,0.41747]
[1725443635717,4.5034,2396.1,2395.6,4.34848]
[1725443635718,0.41747,2395.7,2395.6,4.34848]
[1725443636025,0.41747,2395.8,2395.7,0.41747]
[1725443636215,0.41747,2395.8,2395.6,3.931]
[1725443636216,0.41743,2396.0,2395.6,3.931]
[1725443636513,0.41744,2395.9,2395.8,0.41745]
[1725443636717,0.41744,2395.9,2395.6,3.931]
[1725443636718,0.41743,2396.0,2395.9,0.41744]
[1725443637213,4.117,2396.1,2396.0,0.41742]
[1725443637803,4.117,2396.1,2396.0,1.17082]
[1725443638607,0.41737,2396.3,2396.2,0.41739]
[1725443638910,0.41737,2396.3,2396.0,0.7534]
[1725443638911,0.41738,2396.3,2396.1,0.80309]
[1725443639116,0.41738,2396.3,2396.2,0.41739]
[1725443640519,0.41739,2396.2,2396.1,0.80309]
[1725443640721,1.41545,2396.5,2396.1,0.41739]
[1725443640722,0.3721,2396.5,2396.1,0.41739]